Cogmind - Beta 13 @@@ ROGUE MODE // 2024.03.30 @ 20:58:11 Player: so_sleepy.mp4 Result: Destroyed by S-10 Pest with Light Assault Rifle Performance ------------- Evolutions (1) 500 Regions Visited (2) 400 Robots Destroyed (22) 110 Value Destroyed (296) 296 Prototype IDs (0) 0 Alien Tech Used (0) 0 Bonus (0) 0 TOTAL SCORE: 1306 Bonus ------- None Cogmind --------- Core Integrity 0/400 Matter 300/300 Energy 100/100 System Corruption 0% Temperature Cool (0) Movement Core (500) Ox9 Location -9/Materials Parts ------- > --- POWER (1) -------- (None) > --- PROPULSION (3) --- (None) > --- UTILITY (3) ------ Medium Storage Unit Large Storage Unit > --- WEAPON (2) ------- (None) > --- INVENTORY (15) --- Core Shielding Core Shielding Peak State ------------ > --- POWER ------------ Light Ion Engine > --- PROPULSION ------- Aluminum Leg Aluminum Leg > --- UTILITY ---------- Structural Scanner Core Shielding > --- WEAPON ----------- Light Assault Rifle Hammer > --- INVENTORY -------- Core Shielding Light Armor Plating [Rating: 7] Favorites ----------- Power Light Ion Engine Engine Light Ion Engine Propulsion Aluminum Leg Leg Aluminum Leg Wheel Wheel Utility Structural Scanner Device Structural Scanner Storage Medium Storage Unit Protection Light Armor Plating Weapon Hammer Energy Gun Small Laser Ballistic Gun Light Assault Rifle Impact Weapon Hammer Build | -11 -10 -9 ------- Run | Yrd Mat Mat Slots Evolved 2 | . . 2 Power . | . . . Propulsion 1 | . . 1 Utility 1 | . . 1 Weapon . | . . . Parts Attached 18 | 7 8 3 Power 2 | 1 1 . Engine 2 | 1 1 . Core . | . . . Reactor . | . . . Propulsion 6 | 4 1 1 Treads . | . . . Leg 3 | 2 . 1 Wheel 3 | 2 1 . Hover . | . . . Flight . | . . . Utility 7 | . 5 2 Device 1 | . 1 . Storage 3 | . 2 1 Processor . | . . . Hackware . | . . . Protection 3 | . 2 1 Artifact . | . . . Weapon 3 | 2 1 . Energy Gun 1 | 1 . . Energy Cannon . | . . . Ballistic Gun 1 | 1 . . Ballistic Cannon . | . . . Launcher . | . . . Special Weapon . | . . . Impact Weapon 1 | . 1 . Slashing Weapon . | . . . Piercing Weapon . | . . . Special Melee Weapon . | . . . Unidentified Prototypes . | . . . Parts Lost 7 | . 1 6 Power 2 | . 1 1 Propulsion 2 | . . 2 Utility 1 | . . 1 Weapon 2 | . . 2 Highest Loss Streak 5 | . 1 5 To Critical Strikes . | . . . Average Slot Usage (%) 75 | . 88 57 Engine 10 | . 12 6 Leg 8 | . 14 . Wheel 6 | . 6 7 Device 10 | . 12 8 Storage 11 | . 6 17 Protection 5 | . 6 4 Ballistic Gun 9 | . 14 3 Impact Weapon 11 | . 13 9 Naked Turns . | . . . Heaviest Build 36 | 5 17 36 Greatest Support 20 | 20 20 10 Greatest Overweight (x) 9 | . 5 9 Average Overweight (x) . | . . 2 Largest Inventory Capacity 15 | 5 10 15 Average Capacity 8 | 5 7 12 Most Carried 5 | 5 5 4 Average Carried 2 | 2 3 2 Final Capacity 15 | 5 10 15 Final Carried 4 | 3 4 2 Class Distribution -------------------- 100% | Mutant Dominant Class ---------------- Mutant | -10/Materials Mutant | -9/Materials Resources | -11 -10 -9 ----------- Run | Yrd Mat Mat Matter Collected 385 | 280 90 15 Remotely . | . . . Salvage Created 513 | 84 221 208 Parts 25 | 14 8 3 Haulers Intercepted . | . . . Recyclers Shooed 1 | . 1 . Parts Field Recycled . | . . . Retrieved Matter . | . . . Parts Self-Destructed . | . . . Prevented . | . . . Kills | -11 -10 -9 ------- Run | Yrd Mat Mat Combat Hostiles Destroyed 11 | 1 4 6 Melee 5 | . 2 3 Guns 1 | 1 . . Classes Destroyed 8 | 3 3 2 Worker 4 | 1 2 1 Builder 2 | . 2 . Tunneler 2 | 2 . . Recycler 1 | . 1 . Operator 1 | . . 1 Watcher 1 | . . 1 Swarmer 6 | . 3 3 Grunt 5 | 1 1 3 Best Kill Streak 4 | 4 4 3 Combat Bots Only 3 | 1 3 3 Max Kills in Single Turn 1 | 1 1 1 Gunslinging . | . . . Exploded . | . . . Melee 1 | . 1 1 Uniques/NPCs Destroyed . | . . . Combat | -11 -10 -9 -------- Run | Yrd Mat Mat Hostile Shots Fired 173 | 15 28 130 Missed 36 | 2 4 30 Damage Taken 1178 | 145 189 844 Core 452 | . 48 404 Absorbed by Shields . | . . . Redirected to Shielding 4 | . 4 . Core Remaining (%) 90 | 100 80 . Volleys Fired 27 | 13 12 2 Largest 2 | 2 1 1 Hottest 60 | 60 20 20 Shots Fired 40 | 26 12 2 Gun 40 | 26 12 2 Cannon . | . . . Launcher . | . . . Special . | . . . Kinetic 27 | 13 12 2 Thermal 13 | 13 . . Explosive . | . . . Electromagnetic . | . . . Robot Hit Streak 5 | 5 4 1 Robot Miss Streak 4 | 2 4 1 Penetration Max . | . . . Secondary Targets 3 | 3 . . Max Gunslinging Chain 1 | 1 . . Shots Hit Robots 55 | 14 21 20 Core Hits 8 | 5 2 1 Critical Kills . | . . . Critical Parts Destroyed 6 | . 3 3 Critical Strikes 6 | . 3 3 Smash 6 | . 3 3 Melee Attacks 51 | . 18 33 Impact 51 | . 18 33 Slashing . | . . . Piercing . | . . . Sneak Attacks 6 | . 4 2 Combat Hostiles . | . . . Follow-up Attacks . | . . . Damage Inflicted 1240 | 135 544 561 Guns 188 | 135 53 . Cannons . | . . . Explosions . | . . . Melee 1052 | . 491 561 Ramming . | . . . Kinetic 102 | 49 53 . Thermal 86 | 86 . . Explosive . | . . . Electromagnetic . | . . . Impact 1052 | . 491 561 Slashing . | . . . Piercing . | . . . Highest Corruption . | . . . Average Corruption . | . . . Corruption Purged . | . . . Corruption Blocked . | . . . Overload Shots . | . . . Overflow Damage 416 | . 206 210 Projectiles . | . . . Explosions . | . . . Melee 416 | . 206 210 Knockbacks 4 | . 3 1 Impact 4 | . 3 1 Kinetic . | . . . Secondary . | . . . Self-Inflicted Damage . | . . . Shots . | . . . Rammed . | . . . Targets Rammed . | . . . Kicked . | . . . Crushed . | . . . Highest Temperature 100 | 100 3 6 Average Temperature 44 | 46 3 6 Received Heat Transfer 144 | 78 24 42 Siege Activations . | . . . Robots Corrupted . | . . . Combat Hostiles . | . . . Parts Fried 18 | . 8 10 Impact Corruptions 23 | . 12 11 Robots Melted . | . . . Combat Hostiles . | . . . Parts Melted . | . . . Heat Transferred 200 | 200 . . Parts Sabotaged . | . . . Parts Stolen . | . . . Parts Stripped . | . . . Power Chain Reactions . | . . . Alert | -11 -10 -9 ------- Run | Yrd Mat Mat Peak Influence 158 | 35 158 142 Initial 22 | . 22 5 Average 57 | 4 57 82 Maximum Alert Level . | . . . Low Security (%) 100 | 100 100 100 Level 1 . | . . . Level 2 . | . . . Level 3 . | . . . Level 4 . | . . . Level 5 . | . . . High Security . | . . . Max Security . | . . . Squads Dispatched 4 | . 3 1 Investigation 2 | . 1 1 Extermination . | . . . Reinforcement 2 | . 2 . Assault . | . . . Garrison . | . . . Intercept . | . . . Searches Triggered . | . . . Construction Impeded . | . . . Haulers Reinforced . | . . . Active Scanning Responses . | . . . Cargo Convoy Interrupts . | . . . Stealth | -11 -10 -9 --------- Run | Yrd Mat Mat Distress Signals . | . . . Communications Jammed . | . . . Distress Signals . | . . . Times Spotted 22 | 1 7 14 Peak Tracking Total 9 | 1 3 9 Tactical Retreats . | . . . Traps | -11 -10 -9 ------- Run | Yrd Mat Mat Traps Triggered . | . . . Indirectly . | . . . Trap Hack Attempts . | . . . Triggered . | . . . Disarmed . | . . . Reprogrammed . | . . . Reused . | . . . Traps Extracted . | . . . Installed . | . . . Triggered . | . . . Machines | -11 -10 -9 ---------- Run | Yrd Mat Mat Machines Disabled . | . . . Max in Single Turn . | . . . Machines Repaired . | . . . Machines Dismantled . | . . . Machines Sabotaged . | . . . Overloaded Fab Kills . | . . . Hacking | -11 -10 -9 --------- Run | Yrd Mat Mat Machines Accessed 3 | . 1 2 Terminals 3 | . 1 2 Fabricators . | . . . Repair Stations . | . . . Recycling Units . | . . . Scanalyzers . | . . . Garrison Access . | . . . Total Hacks 8 | . 3 5 Successful 5 | . 2 3 Failed 3 | . 1 2 Catastrophic . | . . . Database Lockouts . | . . . Manual . | . . . Terminals 8 | . 3 5 Fabricators . | . . . Repair Stations . | . . . Recycling Units . | . . . Scanalyzers . | . . . Garrison Access . | . . . Terminal Hacks 5 | . 2 3 Record 3 | . 2 1 Hauler Manifests 1 | . . 1 Zone Layout 1 | . . 1 Fabricator Hacks . | . . . Repair Station Hacks . | . . . Recycling Unit Hacks . | . . . Scanalyzer . | . . . Garrison Access Hacks . | . . . Unauthorized Hacks . | . . . Terminals . | . . . Fabricators . | . . . Repair Stations . | . . . Recycling Units . | . . . Scanalyzers . | . . . Garrison Access . | . . . Data Cores Recovered . | . . . Used . | . . . Hacking Detections 3 | . 1 2 Full Trace Events 2 | . 1 1 Feedback Events . | . . . Feedback Blocked . | . . . Robot Schematics Acquired . | . . . Robots Built . | . . . Authchips . | . . . Time . | . . . Total Robot Build Rating . | . . . Part Schematics Acquired . | . . . Parts Built . | . . . Authchips . | . . . Time . | . . . Total Part Build Rating . | . . . Parts Repaired . | . . . Time . | . . . Parts Recycled . | . . . Recycled Matter . | . . . Retrieved Matter . | . . . Retrieved Components . | . . . Parts Scanalyzed . | . . . Part Schematics Acquired . | . . . Parts Damaged . | . . . Bothacking | -11 -10 -9 ------------ Run | Yrd Mat Mat Used RIF Installer . | . . . Robots Hacked . | . . . Non-combat . | . . . Combat . | . . . Robot Hacks Applied . | . . . Relay Couplers Released . | . . . Fabnet Peak Effective % . | . . . Robots Rewired . | . . . Allies Hacked . | . . . Hacks Repelled . | . . . Allies | -11 -10 -9 -------- Run | Yrd Mat Mat Total Allies . | . . . Largest Group . | . . . Highest-Rated Group . | . . . Highest-Rated Ally . | . . . Total Orders . | . . . Ally Attacks . | . . . Total Damage . | . . . Kills . | . . . Allies Corrupted . | . . . Allies Melted . | . . . Intel | -11 -10 -9 ------- Run | Yrd Mat Mat Robot Analysis Total . | . . . Derelict Logs Recovered . | . . . Drone Launches . | . . . Drone Recoveries . | . . . Exploration | -11 -10 -9 ------------- Run | Yrd Mat Mat Turns Passed 940 | 156 451 333 Spaces Moved 525 | 95 284 146 Core 47 | 30 6 11 Treads . | . . . Legs 204 | 62 140 2 Wheels 274 | 3 138 133 Hover . | . . . Flight . | . . . Fastest Speed 50 | 50 80 95 Average Speed 115 | 96 111 134 Slowest Speed 500 | 120 300 500 Overloaded Moves . | . . . Propulsion Burnouts . | . . . Robots Hopped . | . . . Cave-ins Triggered . | . . . Exploration Rate (%) 15 | 6 34 7 Regions Visited 2 Branch Regions . Pre-discovered Areas . | . . . Known Exits Taken . | . . . Unknown Exits Taken 2 | 1 1 . Scrap Searched . | . . . Spaces Dug . | . . . Terrain Destroyed . | . . . Melee . | . . . Projectile . | . . . AOE . | . . . Terrain Rammed . | . . . Walls Destroyed . | . . . Machines Disabled . | . . . Actions | -11 -10 -9 --------- Run | Yrd Mat Mat Total 743 | 136 381 226 Wait 95 | 13 42 40 Move 523 | 94 283 146 Hop . | . . . Pick Up 18 | 8 9 1 Fast Attach . | . . . Attach 15 | 6 6 3 Detach 4 | 1 3 . Swap 3 | 1 2 . Drop 7 | . 6 1 Fire 27 | 13 12 2 Melee 51 | . 18 33 Ram . | . . . Kick . | . . . Crush . | . . . Escape Stasis . | . . . Rewire . | . . . Trap . | . . . Miscellaneous . | . . . Route ------- -11/Scrapyard -10/Materials (discovered 2 exits: *Mat / [Sub]) -9/Materials History --------- Turn | Location | Event 2 | -11/Scrapyard | Met Revision 17 111 | -11/Scrapyard | Discovered new exit (range 8) 157 | -11/Scrapyard | Entered Materials 302 | -10/Materials | Build established: Mutant 417 | -10/Materials | Discovered new exit (range 7) 600 | -10/Materials | Discovered new exit (range 10) 608 | -10/Materials | Entered another Materials area 608 | -9/Materials | Evolved 2 slots: Propulsion x1, Utility x1 887 | -9/Materials | Core integrity fell below 50% 918 | -9/Materials | Lost 5 parts (1p2n1u1w) 923 | -9/Materials | Core integrity fell below 20% 941 | -9/Materials | Destroyed by S-10 Pest with Light Assault Rifle Last Messages --------------- S-10 Pest system corrupted by crushing effect. S-10 Pest destroyed. Structural Scanner destroyed. Destroyed Lgt. Ion Engine. S-10 Pest system corrupted by crushing effect. S-10 Pest system terminally corrupted. Flight Unit fried. R-06 Scavenger collects Corrupted Lgt. Assault Rifle. Destroyed Flight Unit. S-10 Pest system corrupted by crushing effect. S-10 Pest destroyed. Acquired 5 matter. Aluminum Leg destroyed. R-06 Scavenger collects Lgt. Ion Engine. R-06 Scavenger collects Lgt. Assault Rifle. Hammer destroyed. R-06 Scavenger collects Flight Unit. S-10 Pest destroyed. [Achievement: First Step to Greatness] Map ----- +----------------------------------------------------+ | ?????????????????????????????????????????????????? | | ?????????????????????????????????????????????????? | | ?????????????????????????????????????????????????? | | ?????????????????????????????????????????????????? | | ?????????????????????????????????????????????????? | | ?????????????????????????????????????????????????? | | ?????????????????????????????????????????????????? | | ?????????????????????????????????????????????????? | | ?????????????????????????????????????????????????? | | ???????? #########????????????????????????? | | ????????###################################??????? | | ????????#### ## ####################??????? | | ???????? # """# " ??????? | | ???????? # """# "%" ??????? | | ???????? " # """# " ??????? | | ???????? """ # %+% ############??????????? | | ???????? """ # %#% ##########????????????? | | ???????? """ # # s ##????????????????????? | | ???????? "" # "T" # ###############???????? | | ???????? """ # """ #s ###############???????? | | ???????? "" ########## % ??????? | | ???????? "" ########## ??????? | | ???????? " #??????### ??????? | | ???????? #??????### ################??????? | | ???????? #??????##T ################??????? | | ????????#######??????### @ # ##??????????? | | ?????????????????????### # ##??????????? | | ??????????????????????## # # ??????????? | | ??????????????????????## #% """ % #"??????????? | | ??????????????????????## %+=""""" ""#"??????????? | | ??????????????????????## # """"" T"#"??????????? | | ??????????????????????## # """"" ""#"??????????? | | ??????????????????????## # """ #"??????????? | | ??????????????????????################"??????????? | | ??????????????????????################"??????????? | | ????????????????????????????????????## ??????????? | | ????????????????????????????????????# ??????????? | | ????????????????????????????????????## ??????????? | | ????????????????????????????????????###??????????? | | ????????????????????????????????????# ??????????? | | ?????????????????????????????????????????????????? | | ?????????????????????????????????????????????????? | | ?????????????????????????????????????????????????? | | ?????????????????????????????????????????????????? | | ?????????????????????????????????????????????????? | | ?????????????????????????????????????????????????? | | | | | | | | | +----------------------------------------------------+ Best States ------------- Heat Dissipation 28 Energy Generation 10 Energy Capacity 125 Matter Stores 300 Matter Capacity 300 Sight Range 16 Terrain Scan Density 10 Armor Coverage 150 Core Shielding 20 Evasion (%) 55 Item Schematics ----------------- None Robot Schematics ------------------ None Fabricated ------------ Nothing Alien Tech Used ----------------- None Achievements -------------- First Step to Greatness One Hack Too Far Shopping List Uninvited Guest Challenges ------------ None Game ------ Seed AssembledMasterShockpuncher Manual? 0 Play Time 00:26:08 Cumulative 0.3 hours Start 2024.03.30 @ 20:32:38 End 2024.03.30 @ 20:58:11 Sessions 1 Manual Loads 0 Difficulty Rogue Special Mode None Game No. 1 Rogue 1 Adventurer 0 Explorer 0 Win Type - Total 0 Types 0/0/0/0/0/0/0/0/0 Lore% 0 Gallery% 1 Achievement% 1 Wizard Run 0 Options --------- Layout 1 ASCII 0 Keyboard 0 Movement Mouse Keybinds 0 Fullscreen 1 Font 24/Smallcaps Map View 25x17 Zoom Use 79% Tactical HUD 0 Map Filters NONE Filters NONE Steam 1 RUN: d3258866-c09e-4305-bf30-ae7cb2ffe4fd